bitfinex/quotes_ETHUSD_20240718
["timestamp","ask_amount","ask_price","bid_price","bid_amount"]
[1721271005197,3.8833609,3427.3,3426.2,2.91868]
[1721271005500,3.8833609,3427.3,3425.9,2.91886]
[1721271005501,2.91799,3427.1,3426.0,2.91881]
[1721271005700,2.91799,3427.1,3426.0,2.91885]
[1721271005865,3.0,3427.6,3426.0,2.9188]
[1721271006076,5.91766,3427.5,3426.6,2.91827]
[1721271006283,5.91749,3427.6,3426.5,2.91839]
[1721271006483,2.91774,3427.4,3426.5,2.91839]
[1721271008085,3.0,3427.5,3426.6,2.91831]
[1721271008407,5.91761,3427.5,3426.6,2.91831]
[1721271008590,2.91773,3427.4,3426.6,2.91831]
[1721271009709,2.91773,3427.4,3426.6,2.91831]
[1721271010095,2.91793,3427.1,3426.2,2.91867]
[1721271010295,2.91793,3427.1,3426.3,2.91858]
[1721271011791,2.4183,3427.0,3426.1,2.91876]
[1721271012044,2.4183,3427.0,3425.9,2.91894]
[1721271012045,2.91821,3426.8,3425.9,2.91894]
[1721271012339,2.91827,3426.7,3425.8,2.919]
[1721271012622,2.91827,3426.7,3425.9,2.91893]
[1721271012839,3.15993,3426.9,3425.6,2.91919]
[1721271013124,2.91834,3426.6,3425.7,2.91904]
[1721271013343,2.91844,3426.5,3425.0,2.3538]
[1721271013521,2.91869,3426.2,3425.1,2.91954]
[1721271013731,2.91869,3426.2,3425.0,2.3538]
[1721271013732,5.24664,3426.4,3425.5,2.91927]
[1721271014247,2.91861,3426.3,3425.5,2.91927]
[1721271014863,3.443281,3426.3,3425.3,2.91942]
[1721271015035,2.91884,3426.1,3425.1,2.91959]
[1721271015357,2.91905,3425.8,3424.9,2.91971]
[1721271015531,2.91905,3425.8,3424.9,5.83943]
[1721271015741,2.91905,3425.8,3425.0,0.583943]
[1721271016407,2.91905,3425.8,3424.9,2.91971]
[1721271016408,2.91911,3425.7,3424.9,2.91971]
[1721271016722,2.3328,3425.6,3424.7,2.91995]
[1721271017245,5.25201,3425.6,3424.7,2.91995]
[1721271017643,5.25201,3425.6,3423.8,2.96275492]
[1721271017644,5.25201,3425.6,3424.8,2.91986]
[1721271018406,2.91928,3425.5,3424.6,2.92004]
[1721271018660,3.736391,3425.5,3424.4,2.92021]
[1721271018818,2.91972,3425.0,3423.9,2.4698]
[1721271019018,2.91972,3425.0,3424.1,2.92046]
[1721271019347,2.91979,3424.9,3423.9,2.9206]
[1721271019710,2.91979,3424.9,3423.8,2.92064]
[1721271019711,2.4475,3424.8,3424.0,2.92054]
[1721271019914,2.4475,3424.8,3424.0,3.504658]
[1721271020549,2.4475,3424.8,3423.6,2.92087]
[1721271020845,2.4475,3424.8,3422.7,5.3436]
[1721271020846,2.92024,3424.4,3423.4,2.92104]
[1721271021197,2.92014,3424.5,3423.2,2.92123]
[1721271021340,0.542514,3424.4,3423.2,2.92123]
[1721271021540,3.542514,3424.4,3423.2,2.92123]
[1721271021775,2.92041,3424.2,3423.2,2.92123]
[1721271021947,2.92041,3424.2,3423.0,2.92141]
[1721271022150,2.92058,3424.0,3423.1,2.92124]
[1721271022374,2.92041,3424.2,3423.2,0.584265]
[1721271022873,3.0,3424.4,3423.2,0.584265]
[1721271023041,2.92014,3424.5,3423.6,2.92088]
[1721271023241,3.0,3424.4,3423.6,2.92088]
[1721271023540,3.0,3424.6,3423.7,2.92074]
[1721271023738,2.92027,3424.4,3423.5,2.92097]
[1721271023983,3.0,3424.3,3423.5,2.92097]
[1721271024663,3.0,3424.3,3422.7,7.69321]
[1721271024664,2.4827,3424.0,3423.1,2.92129]
[1721271024882,2.4827,3424.0,3423.2,2.92122]
[1721271025639,2.4827,3424.0,3423.3,2.92115]
[1721271025842,2.92031,3424.3,3423.3,2.92115]
[1721271026043,2.92041,3424.2,3423.3,2.92115]
[1721271026297,2.3489,3424.5,3423.4,0.05841716]
[1721271026584,2.92025,3424.4,3423.4,2.92105]
[1721271027181,3.0,3424.3,3423.4,2.92105]
[1721271027580,3.0,3424.3,3423.2,2.92123]
[1721271027581,2.9204,3424.2,3423.2,2.92123]
[1721271027796,5.26906,3424.5,3423.2,2.92123]
[1721271027797,3.51251,3424.1,3423.2,2.92123]
[1721271028162,3.51251,3424.1,3423.0,2.9214]
[1721271028163,2.3508,3424.0,3423.0,2.9214]
[1721271028484,2.92066,3423.9,3423.0,2.9214]
[1721271029194,5.3508,3424.0,3423.0,2.9214]
[1721271029195,2.92074,3423.8,3423.0,2.9214]
[1721271029568,2.92074,3423.8,3422.8,2.92158]
[1721271029569,8.27139,3424.0,3423.1,2.92132]
[1721271029910,2.92065,3423.9,3423.1,2.92132]
[1721271030501,6.77969,3424.0,3423.1,2.92132]
[1721271030655,8.27137,3424.0,3423.1,2.92132]
[1721271031261,2.92064,3423.9,3423.1,2.92132]
[1721271033879,5.3508,3424.0,3423.2,2.92123]
[1721271034079,3.0,3424.4,3423.2,2.92117]
[1721271034435,3.0,3424.4,3423.5,2.92097]
[1721271034436,2.92025,3424.4,3423.5,2.92097]
[1721271034731,2.3504,3424.5,3423.5,2.92097]
[1721271034881,2.92025,3424.4,3423.5,2.92097]
[1721271035072,3.0,3424.3,3423.5,2.92097]
[1721271035271,5.92032,3424.3,3423.5,2.92097]
[1721271035477,7.039397,3424.3,3423.3,2.92111]
[1721271035693,7.039397,3424.3,3423.2,2.92117]
[1721271035694,2.92056,3424.0,3423.2,2.92117]
[1721271037001,2.92043,3424.2,3423.3,2.92114]
[1721271037323,3.0,3424.3,3423.3,2.92114]
[1721271037534,2.3504,3424.5,3423.7,2.92074]
[1721271037876,2.4093,3425.0,3424.1,2.92046]
[1721271038085,2.4093,3425.0,3424.2,2.92036]
[1721271038879,5.329,3425.0,3424.2,2.92036]
[1721271039084,2.91979,3424.9,3424.0,2.92055]
[1721271039307,2.4093,3425.0,3423.6,2.92083]
[1721271039308,2.92005,3424.6,3423.6,2.92083]
[1721271039586,2.271,3424.4,3423.6,2.92083]
[1721271039779,0.519115,3424.3,3423.6,2.92083]
[1721271040831,0.519115,3424.3,3422.6,3.0]
[1721271040832,0.519115,3424.3,3423.1,2.92128]
[1721271040996,2.92056,3424.1,3423.1,2.92128]
[1721271041176,2.92058,3424.0,3423.1,2.92128]
[1721271041723,2.4788,3423.8,3422.8,2.92157]
[1721271041933,5.39954,3423.8,3422.9,2.92145]
[1721271043579,2.92081,3423.7,3422.7,2.92163]
[1721271043787,2.92081,3423.7,3422.6,2.92174]
[1721271043987,2.92081,3423.7,3422.7,0.292174]
[1721271044598,2.92081,3423.7,3422.9,2.92149]
[1721271046402,2.4788,3423.8,3422.9,2.92149]
[1721271046605,5.39953,3423.8,3422.9,2.92149]
[1721271047301,2.4788,3423.8,3423.0,2.92138]
[1721271047506,2.92051,3424.1,3423.0,0.6135214]
[1721271047684,5.92059,3424.0,3423.0,2.92141]
[1721271048188,3.0,3424.0,3423.3,2.92114]
[1721271048635,3.0,3424.0,3423.4,2.92106]
[1721271048805,2.3979,3424.2,3423.4,2.92106]
[1721271048806,8.3183,3424.2,3423.4,2.92106]
[1721271048991,8.3183,3424.2,3422.7,0.292174]
[1721271049193,0.8837415,3424.1,3423.2,2.92116]
[1721271049393,0.8837415,3424.1,3422.9,2.92142]
[1721271049394,2.92056,3424.0,3423.1,2.9213]
[1721271049805,2.92056,3424.0,3423.2,2.92117]
[1721271050095,2.92056,3424.0,3423.1,2.92131]
[1721271050305,2.92066,3423.9,3423.1,2.92131]
[1721271050508,0.68044015,3423.8,3422.9,2.92149]
[1721271050835,5.24291,3423.7,3422.9,2.92149]
[1721271051205,5.24291,3423.7,3422.7,2.92166]
[1721271051407,5.24291,3423.7,3422.8,2.92158]
[1721271054123,5.24291,3423.7,3422.5,2.92182]
[1721271054124,2.92108,3423.4,3422.5,2.92182]
[1721271054329,5.40327,3423.3,3422.5,2.92182]
[1721271054511,2.4821,3423.3,3422.0,2.92226]
[1721271054724,2.92142,3423.0,3422.2,2.92208]
[1721271055738,2.92157,3422.9,3421.7,2.92251]
[1721271055899,2.92162,3422.8,3422.0,2.92225]
[1721271056101,2.92157,3422.9,3421.7,2.92251]
[1721271056337,2.92168,3422.7,3421.8,2.9224]
[1721271056637,2.92168,3422.7,3421.8,2.92242]
[1721271056947,2.2857,3422.5,3421.8,2.92241]
[1721271057446,2.2857,3422.5,3421.9,2.92235]
[1721271060124,2.2857,3422.5,3421.2,0.6107842]
[1721271060325,2.92158,3422.8,3422.0,2.9222]
[1721271061641,2.4274,3422.9,3421.3,0.55]
[1721271061828,3.347,3423.4,3422.4,2.92185]
[1721271061829,5.4483,3423.3,3422.4,2.92185]
[1721271062258,8.36946,3423.3,3422.4,2.92185]
[1721271062667,5.4483,3423.3,3422.6,2.92175]
[1721271062867,2.4483,3423.3,3422.6,2.92175]
[1721271063163,2.4483,3423.3,3422.4,2.92192]
[1721271063164,2.4483,3423.3,3422.7,3.32743705]
[1721271063531,2.4483,3423.3,3422.7,2.92166]
[1721271063868,2.38,3423.7,3422.9,2.92149]
[1721271064225,5.38,3423.7,3423.0,2.9214]
[1721271064580,2.38,3423.7,3423.0,2.9214]
[1721271064733,2.4016,3424.2,3423.1,0.05842074]
[1721271064925,2.4016,3424.2,3423.7,2.92078]
[1721271065328,2.4016,3424.2,3423.2,2.92116]
[1721271065635,2.92066,3423.9,3423.0,2.9214]
[1721271065970,2.3666,3423.7,3422.9,2.92149]
[1721271066503,5.28742,3423.7,3422.9,2.92149]
[1721271066641,5.28742,3423.7,3422.7,2.92166]
[1721271066642,5.92096,3423.6,3422.7,2.92166]
[1721271066837,4.041838,3423.5,3422.7,2.92166]
[1721271067039,3.0,3423.6,3422.8,2.92158]
[1721271067245,2.3666,3423.7,3422.4,2.92189]
[1721271067573,2.3666,3423.7,3423.0,2.92133]
[1721271067776,5.3666,3423.7,3423.0,2.92133]
[1721271067967,3.0,3423.6,3423.0,2.92133]
[1721271068173,2.3666,3423.7,3423.0,2.92133]
[1721271068469,2.3666,3423.7,3423.1,2.9213]
[1721271068771,2.3666,3423.7,3423.2,2.92123]
[1721271068979,5.92047,3424.1,3423.2,2.92123]
[1721271069135,0.837067,3424.0,3423.2,2.92123]
[1721271069540,2.4502,3424.2,3423.6,2.92082]
[1721271070191,2.4502,3424.2,3423.8,2.92069]
[1721271070490,2.4502,3424.8,3424.1,2.92047]
[1721271070668,2.987184,3424.8,3424.1,2.92041]
[1721271070855,2.4502,3424.8,3424.1,2.92041]
[1721271071954,2.4502,3424.8,3423.9,2.92063]
[1721271072198,2.4502,3424.8,3423.5,0.6118064]
[1721271072495,2.4502,3424.8,3423.5,3.5327264]
[1721271072686,2.92014,3424.5,3423.5,3.5327164]
[1721271072989,2.92014,3424.5,3423.6,2.92082]
[1721271074217,2.92014,3424.5,3423.7,2.9208]
[1721271074863,0.49612,3424.7,3423.9,2.92064]
[1721271075062,5.37009,3424.8,3423.9,2.92064]
[1721271076210,2.4502,3424.8,3424.0,2.92053]
[1721271076874,2.4502,3424.8,3424.1,2.92045]
[1721271079161,2.4502,3424.8,3424.1,5.84085]
[1721271079764,2.4502,3424.8,3424.1,2.9204]
[1721271080373,5.34233,3425.2,3424.2,2.97872132]
[1721271080682,5.34233,3425.2,3424.3,2.92029]
[1721271080683,3.0,3425.1,3424.3,2.92029]
[1721271081585,2.4228,3425.2,3424.6,2.92004]
[1721271084392,2.4228,3425.2,3424.4,2.92021]
[1721271085046,2.4228,3425.2,3424.5,2.92012]
[1721271085323,3.988025,3425.2,3424.5,2.92012]
[1721271085504,3.988025,3425.2,3424.4,2.92019]
[1721271085994,3.988025,3425.2,3424.5,2.92012]
[1721271086524,3.988025,3425.2,3424.3,2.92029]
[1721271087227,3.988025,3425.2,3424.4,2.92021]
[1721271087695,3.988025,3425.2,3424.5,2.9201]
[1721271088221,2.4228,3425.2,3424.5,2.9201]
[1721271088584,2.4228,3425.2,3424.6,2.91997]
[1721271088840,3.0,3425.4,3424.6,0.05839554]
[1721271089033,3.0,3425.4,3424.1,2.3436]
[1721271089034,3.0,3425.4,3424.9,2.91976]
[1721271089212,7.31,3425.9,3425.1,2.91961]
[1721271089529,7.31,3425.9,3425.2,2.91953]
[1721271089890,7.31,3425.9,3425.3,2.91943]
[1721271090155,9.821007,3425.9,3425.3,2.91943]
[1721271090337,9.821007,3425.9,3425.1,2.91957]
[1721271090713,3.0,3425.8,3425.1,2.91957]
[1721271091412,3.0,3425.8,3424.6,2.91998]
[1721271091830,2.91917,3425.7,3424.8,2.91987]
[1721271092033,1.8659127,3425.6,3424.8,2.91987]
[1721271092553,2.3922,3425.5,3424.6,2.91998]
[1721271092785,2.91946,3425.3,3424.2,2.92037]
[1721271092963,2.91963,3425.1,3424.0,2.92054]
[1721271093133,2.91963,3425.1,3424.2,2.92038]
[1721271093332,2.91971,3425.0,3424.2,2.92038]
[1721271093567,5.842936,3425.2,3424.3,2.92029]
[1721271093773,5.842906,3425.2,3424.1,2.92043]
[1721271093975,2.91978,3425.0,3424.1,2.92043]
[1721271094780,2.91978,3425.0,3424.2,2.92037]
[1721271095244,2.91981,3424.9,3424.0,2.92055]
[1721271095438,2.3931,3424.7,3423.8,2.92071]
[1721271095677,2.3931,3424.7,3423.9,2.92063]
[1721271096040,2.3931,3424.7,3423.4,3.0]
[1721271096041,2.3931,3424.7,3424.0,2.92054]
[1721271096553,2.3931,3424.7,3424.1,2.92047]
[1721271098141,3.0,3425.0,3424.4,2.92014]
[1721271098492,2.4924,3425.1,3424.4,2.92014]
[1721271098493,5.4924,3425.1,3424.4,2.92014]
[1721271099977,8.41206,3425.1,3424.4,2.92014]
[1721271100180,2.9198,3424.9,3424.0,2.92054]
[1721271102197,2.92011,3424.6,3423.6,2.92088]
[1721271102346,2.92011,3424.6,3423.7,2.92079]
[1721271102541,2.92011,3424.6,3423.5,2.92098]
[1721271102542,2.92013,3424.5,3423.8,0.584177]
[1721271102746,2.92013,3424.5,3423.5,2.92098]
[1721271102747,2.92013,3424.5,3423.6,2.92086]
[1721271103458,2.92022,3424.4,3423.6,2.92086]
[1721271105892,2.3157,3424.4,3423.2,2.92122]
[1721271106096,2.9204,3424.2,3423.1,2.92131]
[1721271106592,2.9204,3424.2,3423.4,2.92107]
[1721271107109,2.92048,3424.1,3423.4,2.92107]
[1721271107601,5.23592,3424.4,3423.4,2.92107]
[1721271107602,2.92036,3424.3,3423.4,2.92107]
[1721271107805,2.92036,3424.3,3423.4,3.505308]
[1721271108160,2.92047,3424.1,3423.4,0.584238]
[1721271108591,2.92047,3424.1,3423.4,3.505288]
[1721271108797,2.92035,3424.3,3423.4,3.505288]
[1721271108997,2.92041,3424.2,3423.4,3.505288]
[1721271110108,5.23592,3424.4,3423.4,3.505288]
[1721271110109,2.92048,3424.1,3423.4,3.505288]
[1721271111788,2.92048,3424.1,3423.4,0.584238]
[1721271111958,2.92058,3424.0,3423.1,2.92131]
[1721271112909,2.92058,3424.0,3423.2,2.92123]
[1721271115962,2.9204,3424.2,3422.9,2.3052]
[1721271115963,2.9204,3424.2,3423.3,2.92115]
[1721271116158,5.3157,3424.4,3423.4,0.292115]
[1721271116392,2.3157,3424.4,3423.4,2.92105]
[1721271116608,3.0,3424.3,3423.4,2.92105]
[1721271116763,5.3157,3424.4,3423.6,2.92083]
[1721271116963,5.3157,3424.4,3423.7,2.92081]
[1721271119544,5.3157,3424.4,3423.7,3.504988]
[1721271120634,5.3157,3424.4,3423.5,2.92097]
[1721271120788,2.92041,3424.2,3423.4,2.92107]
[1721271120989,8.23593,3424.4,3423.5,2.92096]
[1721271121185,8.23593,3424.4,3423.6,2.92082]
[1721271121524,8.23593,3424.4,3423.7,2.92081]
[1721271121884,5.3157,3424.4,3423.7,2.92081]
[1721271122086,2.3157,3424.4,3423.7,3.504987]
[1721271124223,2.3157,3424.4,3424.0,2.92055]
[1721271124424,2.3198,3424.9,3424.0,2.92055]
[1721271124731,2.3198,3424.9,3424.3,2.92028]
[1721271124900,2.3198,3424.9,3424.4,2.92018]
[1721271125100,7.31,3425.6,3424.5,0.05839863]
[1721271125306,2.3199,3426.0,3425.1,2.9196]
[1721271125618,2.3199,3426.0,3425.2,2.91952]
[1721271126637,5.23876,3426.0,3425.2,2.91952]
[1721271126815,0.815744,3425.9,3425.0,2.9197]
[1721271127014,0.815744,3425.9,3424.8,2.91987]
[1721271127015,2.91905,3425.8,3424.8,2.91987]
[1721271127233,2.91905,3425.8,3424.6,2.92003]
[1721271127234,2.91905,3425.8,3424.7,2.91995]
[1721271127438,3.734764,3425.9,3425.0,2.91963]
[1721271127709,3.734764,3425.9,3424.8,2.91985]
[1721271127710,3.8163734,3425.8,3424.8,2.91985]
[1721271128546,3.8163734,3425.8,3424.9,2.91976]
[1721271128761,2.91921,3425.6,3424.5,2.92007]
[1721271128901,2.91911,3425.7,3424.5,2.92012]
[1721271128902,2.91929,3425.5,3424.5,2.92012]
[1721271129102,2.91929,3425.5,3424.6,2.92004]
[1721271129341,2.4495,3425.3,3424.6,2.92004]
[1721271129705,2.91964,3425.1,3424.1,2.92039]
[1721271129940,2.91978,3425.0,3423.8,2.92072]
[1721271130146,2.91978,3425.0,3424.1,2.92046]
[1721271130147,3.999772,3425.0,3424.1,2.92046]
[1721271130307,3.999772,3425.0,3423.8,3.2712097]
[1721271130308,1.079992,3425.0,3423.8,2.92072]
[1721271130507,2.91994,3424.8,3423.9,2.92064]
[1721271130958,2.91994,3424.8,3424.0,2.92055]
[1721271132250,2.91997,3424.7,3423.8,2.92069]
[1721271132459,2.91997,3424.7,3423.9,2.92062]
[1721271133346,3.9119372,3424.7,3423.9,2.92062]
[1721271133550,3.9119372,3424.7,3423.8,2.92071]
[1721271133725,3.9119372,3424.7,3423.9,2.92063]
[1721271134445,2.91997,3424.7,3423.7,2.92081]
[1721271134863,2.91988,3424.8,3423.9,2.92064]
[1721271135241,6.999692,3425.0,3423.9,2.92064]
[1721271136443,2.91998,3424.7,3423.9,2.92064]
[1721271137481,5.84,3424.7,3423.9,2.92064]
[1721271138185,2.92006,3424.6,3423.7,2.92081]
[1721271138372,2.92006,3424.6,3423.7,3.504988]
[1721271138769,5.24163,3424.5,3423.7,0.584178]
[1721271139086,5.24163,3424.5,3423.5,2.92091]
[1721271139384,2.3215,3424.5,3423.5,2.92091]
[1721271139584,2.9203,3424.3,3423.5,2.92091]
[1721271139788,5.24167,3424.5,3423.6,2.92089]
[1721271139947,5.24167,3424.5,3423.7,2.92073]
[1721271140677,5.24167,3424.5,3423.5,2.92094]
[1721271140678,2.92031,3424.3,3423.5,2.92094]
[1721271140894,2.92031,3424.3,3423.5,3.213034]
[1721271141846,2.92031,3424.3,3423.6,2.92088]
[1721271142052,5.24166,3424.5,3423.6,2.92088]
[1721271143266,5.24166,3424.5,3423.7,2.92081]
[1721271143794,2.3215,3424.5,3423.8,2.92072]
[1721271144084,2.3215,3424.5,3423.8,3.5340824]
[1721271144446,2.3215,3424.5,3423.9,2.92064]
[1721271145251,2.3215,3424.5,3423.8,0.6133624]
[1721271145453,2.3215,3424.5,3423.8,2.92072]
[1721271145748,2.3215,3424.5,3423.9,2.92061]
[1721271146790,3.0,3424.7,3424.1,2.92041]
[1721271147084,3.0,3424.8,3424.1,2.92041]
[1721271147251,5.4901,3424.9,3424.2,2.92038]
[1721271147673,5.4901,3424.9,3424.1,0.584104]
[1721271147674,2.4901,3425.2,3424.3,2.92028]
[1721271148288,2.4901,3425.2,3424.5,2.92005]
[1721271148652,2.4901,3425.2,3424.6,2.92004]
[1721271148858,12.61021,3425.6,3424.7,0.292004]
[1721271149224,8.21947,3425.6,3424.8,2.91986]
[1721271149488,2.91937,3425.4,3424.5,2.92009]
[1721271149688,2.91937,3425.4,3424.6,2.92004]
[1721271149903,3.741328,3425.4,3424.6,2.92004]
[1721271150100,3.741328,3425.4,3424.4,2.92021]
[1721271150101,2.2805,3425.0,3423.6,7.39]
[1721271150256,2.2805,3425.0,3423.4,6.8387096]
[1721271150257,2.91987,3424.9,3423.5,0.292094]
[1721271150696,2.91987,3424.9,3423.9,2.92063]
[1721271151401,2.91996,3424.7,3423.9,2.92063]
[1721271152689,2.92005,3424.6,3423.7,2.9208]
[1721271153091,2.92005,3424.6,3423.8,2.92071]
[1721271153663,2.92025,3424.4,3423.5,3.213064]
[1721271153857,2.92025,3424.4,3423.5,2.92097]
[1721271154163,2.92025,3424.4,3423.6,2.9209]
[1721271155896,2.3532,3424.5,3423.6,2.9209]
[1721271156083,5.27334,3424.5,3423.6,2.9209]
[1721271156292,2.92022,3424.4,3423.6,2.9209]
[1721271156784,2.3532,3424.5,3423.6,2.9209]
[1721271156985,2.3532,3424.5,3423.8,2.9207]
[1721271158293,3.0,3424.6,3423.9,2.92063]
[1721271158866,5.4107,3424.9,3424.0,2.92054]
[1721271159067,2.4909,3424.9,3424.1,0.584126]
[1721271159265,2.4909,3424.9,3424.2,2.92037]
[1721271159603,5.4909,3424.9,3424.2,2.92037]
[1721271161482,5.4909,3424.9,3424.3,2.9203]
[1721271161682,2.4909,3424.9,3424.3,2.9203]
[1721271163580,2.4909,3424.9,3424.1,2.92047]
[1721271163770,2.4909,3424.9,3423.7,3.030897]
[1721271163771,2.91991,3424.8,3424.0,2.92054]
[1721271167214,2.91997,3424.7,3423.8,2.92065]
[1721271167623,2.3613,3424.6,3423.8,2.92065]
[1721271167912,2.3613,3424.6,3423.9,2.92064]
[1721271168221,2.3613,3424.6,3424.0,2.92055]
[1721271168984,2.3613,3424.6,3423.9,0.50167032]
[1721271169181,2.3613,3424.6,3423.8,2.92068]
[1721271169927,2.92024,3424.4,3423.5,2.92093]
[1721271170482,2.3198,3424.8,3423.3,2.9211]
[1721271170697,2.3198,3424.1,3423.3,2.9211]
[1721271171019,2.3198,3424.1,3423.3,3.505333]
[1721271172217,2.92057,3424.0,3423.2,2.92123]
[1721271173129,2.92069,3423.9,3423.2,2.92123]
[1721271173291,2.3248,3423.9,3423.0,2.92136]
[1721271173808,2.92076,3423.8,3423.1,2.92131]
[1721271173995,2.3248,3423.9,3423.2,0.292131]
[1721271174197,5.24549,3423.9,3423.2,0.292131]
[1721271175798,2.3248,3423.9,3423.2,3.213351]
[1721271179216,2.92056,3424.0,3423.2,3.213351]
[1721271179633,3.0,3424.1,3423.3,2.92108]
[1721271179836,3.0,3424.3,3423.5,2.92091]
[1721271180220,3.0,3424.3,3423.4,2.6903211]
[1721271180221,3.0,3424.3,3423.6,2.92088]
[1721271180563,1.046,3424.2,3423.6,2.92088]
[1721271181042,5.9202,3424.5,3423.6,2.92088]
[1721271181043,1.046,3424.4,3423.6,2.92088]
[1721271181210,1.046,3424.4,3423.7,0.85906744]
[1721271183249,1.046,3424.4,3423.7,0.85906744]
[1721271185909,2.3731,3424.6,3423.7,3.77986744]
[1721271186111,2.304,3425.0,3423.8,1.046]
[1721271186319,2.304,3425.0,3424.2,2.92032]
[1721271186621,2.304,3425.0,3424.3,0.688687]
[1721271186622,3.35,3425.0,3424.3,0.688687]
[1721271186822,3.35,3425.0,3424.2,2.92032]
[1721271187030,3.35,3425.0,3424.3,2.92028]
[1721271187464,2.91946,3425.3,3424.0,3.3287]
[1721271187465,2.2916,3425.3,3424.2,1.046]
[1721271187674,1.046,3425.4,3424.3,0.05839506]
[1721271187972,8.356,3425.6,3424.8,2.91985]
[1721271188177,1.046,3425.6,3424.8,2.91985]
[1721271189261,1.046,3425.6,3424.9,2.91978]
[1721271189482,4.046,3425.6,3424.9,2.91978]
[1721271190251,3.0,3425.6,3424.9,2.91978]
[1721271191321,3.0,3425.6,3424.8,0.688588]
[1721271191672,2.91922,3425.6,3424.7,2.91992]
[1721271191843,2.2943,3425.4,3424.1,2.92046]
[1721271192174,2.91963,3425.1,3424.1,2.92046]
[1721271192372,2.91963,3425.1,3424.2,2.92037]
[1721271192578,2.91963,3425.1,3424.3,2.92025]
[1721271192726,3.983783,3425.1,3424.3,2.92025]
[1721271192928,3.983783,3425.1,3424.2,2.92035]
[1721271193151,5.37312,3425.0,3424.0,2.92055]
[1721271193358,2.9198,3424.9,3424.0,2.92055]
[1721271193767,2.9198,3424.9,3423.7,0.85906744]
[1721271193768,2.9198,3424.9,3424.1,2.92047]
[1721271195467,2.9198,3424.9,3424.2,2.92036]
[1721271195627,2.9198,3424.9,3424.2,3.50446]
[1721271195826,2.4534,3425.0,3424.3,2.92029]
[1721271196134,2.91966,3425.1,3424.3,2.92029]
[1721271197133,3.0,3425.3,3424.5,2.92006]
[1721271197471,3.0,3425.3,3424.7,2.91993]
[1721271197777,2.9192,3425.6,3424.8,0.583995]
[1721271198333,2.91929,3425.5,3424.8,0.583995]
[1721271201130,2.91929,3425.5,3424.8,3.503865]
[1721271201969,2.91937,3425.4,3424.8,0.583995]
[1721271202181,2.91937,3425.4,3424.6,2.92002]
[1721271203905,2.91963,3425.1,3424.2,3.50446]
[1721271204078,2.91963,3425.1,3424.3,2.92024]
[1721271207981,2.91979,3424.9,3424.1,2.92046]
[1721271210471,2.91988,3424.8,3423.9,2.92059]
[1721271210674,2.91998,3424.7,3423.9,2.92059]
[1721271210872,2.92005,3424.6,3423.9,2.92059]
[1721271211988,5.37242,3424.8,3423.9,2.92059]
[1721271212204,5.37242,3424.8,3423.9,3.59063474]
[1721271212694,2.92005,3424.6,3423.9,0.67004474]
[1721271212910,2.92005,3424.6,3423.7,2.92079]
[1721271213113,2.92005,3424.6,3423.8,2.92072]
[1721271214424,2.92005,3424.6,3423.9,2.92063]
[1721271216383,3.96505,3424.6,3423.9,2.92063]
[1721271219488,2.92005,3424.6,3423.9,2.92063]
[1721271219786,2.92005,3424.6,3423.9,3.609273]
[1721271221829,3.96505,3424.6,3423.9,3.609273]
[1721271222010,3.96505,3424.6,3423.9,2.92063]
[1721271222209,1.045,3424.6,3424.0,2.92051]
[1721271222523,6.4174,3424.8,3424.0,2.92051]
[1721271223600,6.4174,3424.8,3424.1,2.92046]
[1721271227145,3.4975,3424.8,3424.1,2.92046]
[1721271227295,2.9198,3424.9,3424.2,0.584109]
[1721271227500,3.0,3424.8,3424.2,0.584109]
[1721271227703,1.045,3425.0,3424.2,0.584109]
[1721271228076,7.31,3425.1,3424.2,1.045]
[1721271228730,7.31,3425.1,3424.5,2.92011]
[1721271229872,5.3906,3425.2,3424.5,2.92011]
[1721271233354,1.045,3425.1,3424.3,2.92025]
[1721271233990,1.045,3425.1,3424.4,2.9202]
[1721271235888,10.31,3425.6,3424.4,2.9202]
[1721271235889,10.31,3425.6,3424.9,2.91973]
[1721271236054,2.3276,3425.8,3425.0,2.91969]
[1721271236395,2.919,3425.9,3425.1,0.05838923]
[1721271236553,2.919,3425.9,3425.1,0.40230792]
[1721271236955,3.964,3425.9,3425.1,0.40230792]
[1721271237177,3.964,3425.9,3425.1,3.32185792]
[1721271237456,11.27381,3426.1,3425.1,4.42524363]
[1721271237668,2.91887,3426.0,3425.1,4.42524363]
[1721271237966,1.045,3425.9,3425.1,3.38024363]
[1721271238486,1.045,3425.9,3425.2,0.46575347]
[1721271238776,2.91848,3426.5,3425.3,2.4302]
[1721271238955,2.3339,3427.1,3425.8,1.045]
[1721271239148,1.045,3426.8,3425.9,3.315339]
[1721271239356,0.14774569,3426.7,3425.9,2.91893]
[1721271240157,1.045,3426.8,3425.9,2.91893]
[1721271240355,2.91827,3426.7,3425.9,2.91893]
[1721271241155,5.91811,3426.9,3426.0,2.91882]
[1721271242370,3.0,3426.9,3426.1,2.91875]
[1721271242569,2.9175,3427.6,3426.7,2.91817]
[1721271242792,2.2668,3428.1,3426.8,2.97651943]
[1721271242793,2.91733,3427.8,3426.8,2.97651943]
[1721271243030,0.14777699,3427.7,3426.9,0.05835482]
[1721271243198,2.2668,3428.1,3427.1,2.91789]
[1721271243512,2.91699,3428.2,3427.4,2.91765]